[Event "*** Titled Tuesday Blitz"]
[Site "Chess.com"]
[Date "2020.10.20"]
[Round "3"]
[White "picturesquecheck"]
[Black "Nastya_Rakhmangulova"]
[Result "1-0"]
[WhiteElo "2129"]
[BlackElo "2440"]
[TimeControl "180+1"]
[EndTime "10:28:38 PDT"]
[Termination "picturesquecheck won on time"]

1. e3 {[%clk 0:03:00.8]} 1... g6 {[%clk 0:02:50.9]} 2. d4 {[%clk 0:03:00]} 2...
Bg7 {[%clk 0:02:50.9]} 3. Nf3 {[%clk 0:03:00.4]} 3... d6 {[%clk 0:02:32.4]} 4.
Bd3 {[%clk 0:02:58.9]} 4... Nf6 {[%clk 0:02:23.5]} 5. O-O {[%clk 0:02:58.4]}
5... O-O {[%clk 0:02:23.6]} 6. c4 {[%clk 0:02:56.3]} 6... Nbd7 {[%clk
0:02:21.1]} 7. b3 {[%clk 0:02:55.8]} 7... e5 {[%clk 0:02:18.3]} 8. Nc3 {[%clk
0:02:52.6]} 8... Re8 {[%clk 0:02:17.6]} 9. Bc2 {[%clk 0:02:50]} 9... c6 {[%clk
0:02:11.3]} 10. Bb2 {[%clk 0:02:49.2]} 10... e4 {[%clk 0:01:55.4]} 11. Nd2
{[%clk 0:02:48.3]} 11... d5 {[%clk 0:01:55.7]} 12. Rc1 {[%clk 0:02:47.4]} 12...
Nf8 {[%clk 0:01:36]} 13. a4 {[%clk 0:02:45.3]} 13... b6 {[%clk 0:01:21]} 14. Ba3
{[%clk 0:02:44.6]} 14... a6 {[%clk 0:01:18.5]} 15. Bxf8 {[%clk 0:02:37.2]} 15...
Bxf8 {[%clk 0:01:16.3]} 16. Rb1 {[%clk 0:02:29.4]} 16... a5 {[%clk 0:00:48.9]}
17. Re1 {[%clk 0:01:55.9]} 17... Ba6 {[%clk 0:00:34.4]} 18. f4 {[%clk
0:01:44.7]} 18... Bb4 {[%clk 0:00:31.3]} 19. Na2 {[%clk 0:01:42.4]} 19... Bxd2
{[%clk 0:00:31.3]} 20. Qxd2 {[%clk 0:01:43.3]} 20... dxc4 {[%clk 0:00:32.2]} 21.
bxc4 {[%clk 0:01:41.6]} 21... Bxc4 {[%clk 0:00:33.1]} 22. Bb3 {[%clk 0:01:38.8]}
22... Bd3 {[%clk 0:00:29.9]} 23. Rbc1 {[%clk 0:01:37.6]} 23... Qd7 {[%clk
0:00:26.8]} 24. Nc3 {[%clk 0:01:34]} 24... b5 {[%clk 0:00:23.8]} 25. Qa2 {[%clk
0:01:30]} 25... b4 {[%clk 0:00:16.5]} 26. Nd1 {[%clk 0:01:29.7]} 26... Nd5
{[%clk 0:00:15.7]} 27. Nf2 {[%clk 0:01:21.9]} 27... Rec8 {[%clk 0:00:11]} 28.
Rc5 {[%clk 0:01:10.5]} 28... Nc3 {[%clk 0:00:10.9]} 29. Qd2 {[%clk 0:01:10.4]}
29... Qb7 {[%clk 0:00:05.2]} 30. Ng4 {[%clk 0:01:08.6]} 30... Kg7 {[%clk
0:00:04.7]} 31. Ne5 {[%clk 0:01:08]} 31... Rd8 {[%clk 0:00:04.8]} 32. Nxf7
{[%clk 0:01:07]} 32... Rd5 {[%clk 0:00:04.7]} 33. Rxd5 {[%clk 0:01:04.6]} 33...
cxd5 {[%clk 0:00:05.6]} 34. Ne5 {[%clk 0:01:03.4]} 34... Rc8 {[%clk 0:00:04.7]}
35. Nxd3 {[%clk 0:01:03]} 35... exd3 {[%clk 0:00:04.4]} 36. Qxd3 {[%clk
0:01:03.9]} 36... Ne4 {[%clk 0:00:04.8]} 37. Qb5 {[%clk 0:01:00.9]} 37... Qxb5
{[%clk 0:00:02.6]} 38. axb5 {[%clk 0:01:01.8]} 38... Rc3 {[%clk 0:00:02.3]} 39.
Bxd5 {[%clk 0:01:01.5]} 39... Nd6 {[%clk 0:00:01.8]} 40. b6 {[%clk 0:01:01.5]}
40... b3 {[%clk 0:00:01.5]} 41. b7 {[%clk 0:00:50.2]} 1-0

[Event "*** Titled Tuesday Blitz"]
[Site "Chess.com"]
[Date "2020.10.20"]
[Round "3"]
[White "Witik"]
[Black "andresgv36"]
[Result "1-0"]
[WhiteElo "2766"]
[BlackElo "2418"]
[TimeControl "180+1"]
[EndTime "10:28:41 PDT"]
[Termination "Witik won on time"]

1. d4 {[%clk 0:03:00.9]} 1... Nf6 {[%clk 0:02:58.6]} 2. Bf4 {[%clk 0:03:00.6]}
2... g6 {[%clk 0:02:56.6]} 3. Nf3 {[%clk 0:03:00.4]} 3... Bg7 {[%clk 0:02:56.5]}
4. Nc3 {[%clk 0:03:00.2]} 4... O-O {[%clk 0:02:54.2]} 5. e4 {[%clk 0:03:00]}
5... d6 {[%clk 0:02:54.5]} 6. h3 {[%clk 0:02:59.6]} 6... Nbd7 {[%clk 0:02:47.3]}
7. Bh2 {[%clk 0:02:59.1]} 7... c5 {[%clk 0:02:33.9]} 8. e5 {[%clk 0:02:55.3]}
8... Ne8 {[%clk 0:02:29.4]} 9. dxc5 {[%clk 0:02:55.2]} 9... Nxc5 {[%clk
0:02:08.1]} 10. Bc4 {[%clk 0:02:54.3]} 10... Qa5 {[%clk 0:01:55.6]} 11. O-O
{[%clk 0:02:52.5]} 11... dxe5 {[%clk 0:01:53.2]} 12. Bxe5 {[%clk 0:02:44.7]}
12... Bxe5 {[%clk 0:01:39.8]} 13. Nxe5 {[%clk 0:02:44]} 13... Nd6 {[%clk
0:01:38.9]} 14. Nd5 {[%clk 0:02:40.4]} 14... Qd8 {[%clk 0:01:27.2]} 15. Qd4
{[%clk 0:02:27.3]} 15... Ne6 {[%clk 0:01:17.4]} 16. Qh4 {[%clk 0:02:23.3]} 16...
Nxc4 {[%clk 0:01:08.7]} 17. Qxc4 {[%clk 0:02:22.6]} 17... f6 {[%clk 0:00:35.9]}
18. Nf3 {[%clk 0:02:05.9]} 18... Kg7 {[%clk 0:00:34.9]} 19. Rad1 {[%clk
0:02:02.5]} 19... Bd7 {[%clk 0:00:32.1]} 20. Qb4 {[%clk 0:01:59]} 20... Rf7
{[%clk 0:00:18.2]} 21. Rfe1 {[%clk 0:01:57.4]} 21... Qe8 {[%clk 0:00:15]} 22. c4
{[%clk 0:01:43.5]} 22... a5 {[%clk 0:00:14.8]} 23. Qxb7 {[%clk 0:01:38.7]} 23...
Nc5 {[%clk 0:00:13.7]} 24. Qb6 {[%clk 0:01:34.7]} 24... Rc8 {[%clk 0:00:13.6]}
25. Qxa5 {[%clk 0:01:20.4]} 25... e6 {[%clk 0:00:13.5]} 26. Nb6 {[%clk
0:01:18.8]} 26... Rc6 {[%clk 0:00:12.8]} 27. b4 {[%clk 0:01:16.8]} 27... Nb7
{[%clk 0:00:10]} 28. Qa7 {[%clk 0:01:16.7]} 28... Bc8 {[%clk 0:00:06.6]} 29. Nd4
{[%clk 0:01:07.8]} 29... Nd6 {[%clk 0:00:05.5]} 30. Nxc6 {[%clk 0:00:58.8]}
30... Rxa7 {[%clk 0:00:04.3]} 31. Nxa7 {[%clk 0:00:59.7]} 31... Nf5 {[%clk
0:00:02]} 32. Naxc8 {[%clk 0:00:58.9]} 32... Qc6 {[%clk 0:00:02.6]} 33. f3
{[%clk 0:00:34.2]} 33... e5 {[%clk 0:00:02.7]} 34. c5 {[%clk 0:00:31.6]} 34...
Nd4 {[%clk 0:00:01.8]} 35. a4 {[%clk 0:00:30.6]} 1-0

[Event "*** Titled Tuesday Blitz"]
[Site "Chess.com"]
[Date "2020.10.20"]
[Round "3"]
[White "anon481216"]
[Black "AlexeiShirov"]
[Result "0-1"]
[WhiteElo "2423"]
[BlackElo "2812"]
[TimeControl "180+1"]
[EndTime "10:28:43 PDT"]
[Termination "AlexeiShirov won by resignation"]

1. d4 {[%clk 0:03:00.9]} 1... d5 {[%clk 0:03:00.1]} 2. c4 {[%clk 0:03:00.8]}
2... c6 {[%clk 0:02:59.4]} 3. Nc3 {[%clk 0:02:58.7]} 3... Nf6 {[%clk 0:02:59.1]}
4. e3 {[%clk 0:02:58]} 4... Nbd7 {[%clk 0:02:55.4]} 5. Nf3 {[%clk 0:02:53.2]}
5... e6 {[%clk 0:02:55.2]} 6. Bd3 {[%clk 0:02:52.2]} 6... dxc4 {[%clk
0:02:53.1]} 7. Bxc4 {[%clk 0:02:52.2]} 7... b5 {[%clk 0:02:53.2]} 8. Bd3 {[%clk
0:02:52.6]} 8... Bb7 {[%clk 0:02:51]} 9. O-O {[%clk 0:02:51.1]} 9... a6 {[%clk
0:02:50.2]} 10. e4 {[%clk 0:02:50.9]} 10... c5 {[%clk 0:02:50.4]} 11. d5 {[%clk
0:02:51.3]} 11... Qc7 {[%clk 0:02:50.4]} 12. dxe6 {[%clk 0:02:51.4]} 12... fxe6
{[%clk 0:02:49.9]} 13. Bc2 {[%clk 0:02:52.3]} 13... Bd6 {[%clk 0:02:41.5]} 14.
Ng5 {[%clk 0:02:49.9]} 14... Nf8 {[%clk 0:02:40.9]} 15. f4 {[%clk 0:02:48.8]}
15... O-O-O {[%clk 0:02:40.1]} 16. Qe1 {[%clk 0:02:40.5]} 16... e5 {[%clk
0:02:32.8]} 17. Nd5 {[%clk 0:02:37.4]} 17... Bxd5 {[%clk 0:02:26.3]} 18. exd5
{[%clk 0:02:36.9]} 18... exf4 {[%clk 0:02:23.1]} 19. a4 {[%clk 0:02:29.4]} 19...
b4 {[%clk 0:02:12.1]} 20. Qe2 {[%clk 0:02:24.9]} 20... Kb7 {[%clk 0:01:23.5]}
21. Bd3 {[%clk 0:02:20.3]} 21... Ka7 {[%clk 0:01:21.4]} 22. Bxa6 {[%clk
0:02:14.2]} 22... Be5 {[%clk 0:01:21.3]} 23. Bc4 {[%clk 0:01:54.1]} 23... Nxd5
{[%clk 0:01:19.7]} 24. Nf3 {[%clk 0:01:20.5]} 24... Ng6 {[%clk 0:01:17.3]} 25.
Kh1 {[%clk 0:01:12.4]} 25... Rhe8 {[%clk 0:01:15.1]} 26. Qc2 {[%clk 0:01:07.6]}
26... Ne3 {[%clk 0:01:12.5]} 27. Bxe3 {[%clk 0:01:06.8]} 27... fxe3 {[%clk
0:01:12.1]} 28. Rae1 {[%clk 0:01:02.9]} 28... Bd4 {[%clk 0:01:07.3]} 29. Ng5
{[%clk 0:00:55.2]} 29... Nf4 {[%clk 0:00:56.3]} 30. Rf3 {[%clk 0:00:45.2]} 30...
h6 {[%clk 0:00:50.9]} 31. Ne4 {[%clk 0:00:29.1]} 31... Qe5 {[%clk 0:00:47]} 32.
Ng3 {[%clk 0:00:26.8]} 32... g5 {[%clk 0:00:46]} 33. Ne2 {[%clk 0:00:21.3]}
33... Bxb2 {[%clk 0:00:43.4]} 34. Nxf4 {[%clk 0:00:15.6]} 34... gxf4 {[%clk
0:00:42.6]} 35. Qh7+ {[%clk 0:00:15.4]} 35... Re7 {[%clk 0:00:42.6]} 36. Qxh6
{[%clk 0:00:15.4]} 36... Rd6 {[%clk 0:00:41.6]} 37. Qh3 {[%clk 0:00:13]} 37...
Bc3 {[%clk 0:00:39.4]} 38. Rg1 {[%clk 0:00:10.4]} 38... e2 {[%clk 0:00:38.3]}
39. Bxe2 {[%clk 0:00:05.2]} 39... Qxe2 {[%clk 0:00:38.2]} 40. Rxf4 {[%clk
0:00:05.6]} 40... Rd1 {[%clk 0:00:37.1]} 0-1

[Event "*** Titled Tuesday Blitz"]
[Site "Chess.com"]
[Date "2020.10.20"]
[Round "3"]
[White "TomiLen"]
[Black "Unknown_IM"]
[Result "1-0"]
[WhiteElo "2605"]
[BlackElo "2378"]
[TimeControl "180+1"]
[EndTime "10:28:45 PDT"]
[Termination "TomiLen won on time"]

1. c4 {[%clk 0:03:00.9]} 1... e6 {[%clk 0:02:59.5]} 2. Nc3 {[%clk 0:03:00.1]}
2... Nf6 {[%clk 0:02:59.6]} 3. Nf3 {[%clk 0:02:56.5]} 3... d5 {[%clk 0:02:55.2]}
4. d4 {[%clk 0:02:56.3]} 4... Be7 {[%clk 0:02:51.2]} 5. Bg5 {[%clk 0:02:54.4]}
5... c6 {[%clk 0:02:47]} 6. e3 {[%clk 0:02:54.2]} 6... Nbd7 {[%clk 0:02:46.1]}
7. Qc2 {[%clk 0:02:54.1]} 7... h6 {[%clk 0:02:45.2]} 8. Bh4 {[%clk 0:02:53.4]}
8... O-O {[%clk 0:02:44.2]} 9. Rc1 {[%clk 0:02:53.3]} 9... b6 {[%clk 0:02:43.3]}
10. cxd5 {[%clk 0:02:47.1]} 10... exd5 {[%clk 0:02:42]} 11. Bd3 {[%clk
0:02:46.6]} 11... c5 {[%clk 0:02:31]} 12. O-O {[%clk 0:02:46.1]} 12... c4 {[%clk
0:02:21.6]} 13. Bf5 {[%clk 0:02:45.3]} 13... Bb7 {[%clk 0:02:21.2]} 14. Rfd1
{[%clk 0:02:40.8]} 14... g6 {[%clk 0:01:58.4]} 15. Bh3 {[%clk 0:01:54]} 15...
Kg7 {[%clk 0:01:16.9]} 16. Ne5 {[%clk 0:01:44]} 16... a6 {[%clk 0:00:46.5]} 17.
a4 {[%clk 0:01:43.1]} 17... Rc8 {[%clk 0:00:36.6]} 18. Bxf6+ {[%clk 0:01:38.7]}
18... Nxf6 {[%clk 0:00:33.3]} 19. Bxc8 {[%clk 0:01:37.4]} 19... Qxc8 {[%clk
0:00:34.2]} 20. b3 {[%clk 0:01:32.9]} 20... Bb4 {[%clk 0:00:14]} 21. bxc4 {[%clk
0:01:30.9]} 21... dxc4 {[%clk 0:00:14]} 22. Rb1 {[%clk 0:01:28.9]} 22... a5
{[%clk 0:00:11.3]} 23. f3 {[%clk 0:01:26.4]} 23... Nd5 {[%clk 0:00:10.2]} 24.
Nxd5 {[%clk 0:01:24.7]} 24... Bxd5 {[%clk 0:00:11.1]} 25. e4 {[%clk 0:01:24.9]}
25... Be6 {[%clk 0:00:11.2]} 26. d5 {[%clk 0:01:23.4]} 26... Qc5+ {[%clk
0:00:11.1]} 27. Kh1 {[%clk 0:01:21.5]} 27... Bc8 {[%clk 0:00:09.7]} 28. Qxc4
{[%clk 0:01:19.1]} 28... Qd6 {[%clk 0:00:04.7]} 29. Qd4 {[%clk 0:01:13.8]} 29...
Bc5 {[%clk 0:00:02.9]} 30. Qa1 {[%clk 0:01:12.7]} 30... f6 {[%clk 0:00:02.5]}
31. Nc4 {[%clk 0:01:12.1]} 31... Qc7 {[%clk 0:00:02.8]} 32. d6 {[%clk
0:01:12.3]} 32... Qc6 {[%clk 0:00:02.9]} 33. e5 {[%clk 0:01:03.2]} 33... Be6
{[%clk 0:00:01.5]} 34. exf6+ {[%clk 0:01:02.1]} 34... Kh7 {[%clk 0:00:01.8]} 35.
Ne5 {[%clk 0:00:57.5]} 35... Qb7 {[%clk 0:00:02.3]} 36. d7 {[%clk 0:00:56]}
36... Bd5 {[%clk 0:00:02]} 37. Rxd5 {[%clk 0:00:41.1]} 37... Qxd5 {[%clk
0:00:01.4]} 38. Rd1 {[%clk 0:00:41.7]} 1-0

[Event "*** Titled Tuesday Blitz"]
[Site "Chess.com"]
[Date "2020.10.20"]
[Round "3"]
[White "denispopov"]
[Black "LaPorfia"]
[Result "0-1"]
[WhiteElo "1955"]
[BlackElo "2302"]
[TimeControl "180+1"]
[EndTime "10:28:45 PDT"]
[Termination "LaPorfia won on time"]

1. e4 {[%clk 0:03:00.9]} 1... d5 {[%clk 0:02:59.6]} 2. exd5 {[%clk 0:02:59.3]}
2... Nf6 {[%clk 0:02:59.7]} 3. Bb5+ {[%clk 0:02:55.2]} 3... Nbd7 {[%clk
0:02:57.7]} 4. Nc3 {[%clk 0:02:52.9]} 4... g6 {[%clk 0:02:57.5]} 5. Nf3 {[%clk
0:02:52.8]} 5... Bg7 {[%clk 0:02:57.4]} 6. O-O {[%clk 0:02:53.4]} 6... O-O
{[%clk 0:02:57.2]} 7. d4 {[%clk 0:02:53.6]} 7... Nb6 {[%clk 0:02:57.3]} 8. Bg5
{[%clk 0:02:52.5]} 8... Nbxd5 {[%clk 0:02:52.6]} 9. Nxd5 {[%clk 0:02:50.1]} 9...
Qxd5 {[%clk 0:02:51.4]} 10. c4 {[%clk 0:02:49.9]} 10... Qd8 {[%clk 0:02:50.9]}
11. Re1 {[%clk 0:02:45.2]} 11... c6 {[%clk 0:02:50.2]} 12. Ba4 {[%clk
0:02:44.9]} 12... Bg4 {[%clk 0:02:49.1]} 13. Be3 {[%clk 0:02:39.8]} 13... Qa5
{[%clk 0:02:39.5]} 14. Bc2 {[%clk 0:02:14.8]} 14... Qh5 {[%clk 0:02:37]} 15. h3
{[%clk 0:01:50.5]} 15... Bxf3 {[%clk 0:02:35.7]} 16. Qxf3 {[%clk 0:01:51.4]}
16... Qxf3 {[%clk 0:02:35.2]} 17. gxf3 {[%clk 0:01:52.3]} 17... Rfd8 {[%clk
0:02:34.3]} 18. Rad1 {[%clk 0:01:48.9]} 18... e6 {[%clk 0:02:33.9]} 19. Be4
{[%clk 0:01:13.1]} 19... Rd7 {[%clk 0:02:29.6]} 20. Rd2 {[%clk 0:00:57.3]} 20...
Rad8 {[%clk 0:02:27.4]} 21. Red1 {[%clk 0:00:57]} 21... Nh5 {[%clk 0:01:48]} 22.
Kg2 {[%clk 0:00:53]} 22... f5 {[%clk 0:01:46.6]} 23. Bg5 {[%clk 0:00:44.4]}
23... Rf8 {[%clk 0:01:25.6]} 24. Bb1 {[%clk 0:00:38.7]} 24... h6 {[%clk
0:01:24.7]} 25. Bh4 {[%clk 0:00:17.5]} 25... g5 {[%clk 0:01:22.3]} 26. Bg3
{[%clk 0:00:17.2]} 26... f4 {[%clk 0:01:21.6]} 27. Bh2 {[%clk 0:00:16.8]} 27...
Rfd8 {[%clk 0:01:19.7]} 28. Bg6 {[%clk 0:00:12.2]} 28... Nf6 {[%clk 0:01:19.2]}
29. h4 {[%clk 0:00:11.8]} 29... Nh7 {[%clk 0:01:11.7]} 30. hxg5 {[%clk
0:00:10.1]} 30... hxg5 {[%clk 0:01:10.7]} 31. d5 {[%clk 0:00:08.7]} 31... exd5
{[%clk 0:00:59.5]} 32. Bf5 {[%clk 0:00:07.5]} 32... Rd6 {[%clk 0:00:55.2]} 33.
cxd5 {[%clk 0:00:06.2]} 33... cxd5 {[%clk 0:00:55.4]} 34. Rxd5 {[%clk 0:00:06]}
34... Rxd5 {[%clk 0:00:53.8]} 35. Rxd5 {[%clk 0:00:05.9]} 35... Rxd5 {[%clk
0:00:52.2]} 36. Be6+ {[%clk 0:00:05.5]} 36... Kf8 {[%clk 0:00:52.6]} 37. Bxd5
{[%clk 0:00:06.4]} 37... b6 {[%clk 0:00:53]} 38. Kh3 {[%clk 0:00:05.6]} 38...
Nf6 {[%clk 0:00:51.6]} 39. Bb3 {[%clk 0:00:02.1]} 39... Ke7 {[%clk 0:00:51.5]}
40. Kg2 {[%clk 0:00:01.9]} 40... Kd6 {[%clk 0:00:51.1]} 41. Bg1 {[%clk
0:00:02.2]} 41... Ke5 {[%clk 0:00:46.6]} 42. Kf1 {[%clk 0:00:01.6]} 42... Nd5
{[%clk 0:00:44.6]} 0-1

[Event "*** Titled Tuesday Blitz"]
[Site "Chess.com"]
[Date "2020.10.20"]
[Round "3"]
[White "Artem_Sadovsky"]
[Black "Bulldog167"]
[Result "0-1"]
[WhiteElo "2504"]
[BlackElo "2758"]
[TimeControl "180+1"]
[EndTime "10:28:47 PDT"]
[Termination "Bulldog167 won by checkmate"]

1. Nf3 {[%clk 0:02:29.2]} 1... f5 {[%clk 0:02:58.2]} 2. d3 {[%clk 0:02:06.4]}
2... Nc6 {[%clk 0:02:52.4]} 3. e4 {[%clk 0:02:06.2]} 3... e5 {[%clk 0:02:41.4]}
4. exf5 {[%clk 0:01:59.3]} 4... Nf6 {[%clk 0:02:34.8]} 5. g3 {[%clk 0:01:45.9]}
5... Bc5 {[%clk 0:02:30.3]} 6. Bg2 {[%clk 0:01:44]} 6... d6 {[%clk 0:02:30.4]}
7. Nh4 {[%clk 0:01:43.8]} 7... Nd4 {[%clk 0:01:56.4]} 8. O-O {[%clk 0:01:29.3]}
8... Nxf5 {[%clk 0:01:54.6]} 9. Nxf5 {[%clk 0:01:30.2]} 9... Bxf5 {[%clk
0:01:55.1]} 10. Bxb7 {[%clk 0:01:29.5]} 10... O-O {[%clk 0:01:51.9]} 11. Bg2
{[%clk 0:01:11.1]} 11... Ng4 {[%clk 0:01:30.3]} 12. c3 {[%clk 0:00:45]} 12...
Nxf2 {[%clk 0:01:27.2]} 13. Qb3+ {[%clk 0:00:44.7]} 13... Kh8 {[%clk 0:01:23.8]}
14. d4 {[%clk 0:00:42]} 14... Nh3+ {[%clk 0:00:41.8]} 15. Kh1 {[%clk 0:00:39.3]}
15... Be4 {[%clk 0:00:39.7]} 16. Qd1 {[%clk 0:00:29.5]} 16... Nf2+ {[%clk
0:00:09.9]} 17. Rxf2 {[%clk 0:00:28.2]} 17... Rxf2 {[%clk 0:00:10.8]} 18. Bxe4
{[%clk 0:00:28]} 18... Qf6 {[%clk 0:00:09.5]} 19. Bg2 {[%clk 0:00:20]} 19...
exd4 {[%clk 0:00:08.3]} 20. Nd2 {[%clk 0:00:15.2]} 20... Re8 {[%clk 0:00:08.2]}
21. Nf3 {[%clk 0:00:11.4]} 21... Ree2 {[%clk 0:00:07]} 22. Bg5 {[%clk
0:00:09.9]} 22... Qxf3 {[%clk 0:00:03]} 23. Bxf3 {[%clk 0:00:04.1]} 23... Rxh2+
{[%clk 0:00:03.4]} 24. Kg1 {[%clk 0:00:05]} 24... d3+ {[%clk 0:00:03.1]} 25. Kf1
{[%clk 0:00:04.3]} 25... Rhf2+ {[%clk 0:00:02.5]} 26. Kg1 {[%clk 0:00:04.8]}
26... Rg2+ {[%clk 0:00:02]} 27. Kh1 {[%clk 0:00:03.2]} 27... Rh2# {[%clk
0:00:02.2]} 0-1

[Event "*** Titled Tuesday Blitz"]
[Site "Chess.com"]
[Date "2020.10.20"]
[Round "3"]
[White "MFBerna"]
[Black "Rozum_Ivan"]
[Result "0-1"]
[WhiteElo "2413"]
[BlackElo "2732"]
[TimeControl "180+1"]
[EndTime "10:28:47 PDT"]
[Termination "Rozum_Ivan won on time"]

1. Nf3 {[%clk 0:03:00.9]} 1... c5 {[%clk 0:02:58.5]} 2. b3 {[%clk 0:02:50.6]}
2... Nc6 {[%clk 0:02:57.4]} 3. Bb2 {[%clk 0:02:50.3]} 3... d6 {[%clk 0:02:58.3]}
4. e3 {[%clk 0:02:49.6]} 4... e5 {[%clk 0:02:55.2]} 5. Bb5 {[%clk 0:02:48.1]}
5... f5 {[%clk 0:02:47.3]} 6. c4 {[%clk 0:02:35]} 6... Nf6 {[%clk 0:02:45.3]} 7.
d4 {[%clk 0:02:21.7]} 7... cxd4 {[%clk 0:02:36.7]} 8. exd4 {[%clk 0:02:22.6]}
8... e4 {[%clk 0:02:35.6]} 9. Nfd2 {[%clk 0:02:22.7]} 9... a6 {[%clk 0:02:34]}
10. Ba4 {[%clk 0:02:17.9]} 10... Bd7 {[%clk 0:02:13.2]} 11. d5 {[%clk
0:02:16.9]} 11... Nb4 {[%clk 0:01:58.1]} 12. Bxd7+ {[%clk 0:02:17.8]} 12... Nxd7
{[%clk 0:01:55.4]} 13. O-O {[%clk 0:02:18.7]} 13... Be7 {[%clk 0:01:47.4]} 14.
Bxg7 {[%clk 0:02:07.3]} 14... Bf6 {[%clk 0:01:20.3]} 15. Qh5+ {[%clk 0:02:05.4]}
15... Ke7 {[%clk 0:01:20.7]} 16. Bxf6+ {[%clk 0:01:45.5]} 16... Kxf6 {[%clk
0:01:14]} 17. Nc3 {[%clk 0:01:36.9]} 17... Qe8 {[%clk 0:01:06.8]} 18. Qh4+
{[%clk 0:01:07.3]} 18... Kg7 {[%clk 0:01:06.9]} 19. Qg5+ {[%clk 0:00:54.9]}
19... Qg6 {[%clk 0:01:07.1]} 20. Qe7+ {[%clk 0:00:54.6]} 20... Qf7 {[%clk
0:01:07.5]} 21. Qxd6 {[%clk 0:00:49.5]} 21... Nd3 {[%clk 0:01:08.2]} 22. f3
{[%clk 0:00:36.5]} 22... e3 {[%clk 0:01:07.6]} 23. Qg3+ {[%clk 0:00:27.5]} 23...
Qg6 {[%clk 0:01:04.9]} 24. Ndb1 {[%clk 0:00:21.5]} 24... f4 {[%clk 0:01:01.3]}
25. Qxg6+ {[%clk 0:00:12.6]} 25... hxg6 {[%clk 0:01:02.2]} 26. Ne2 {[%clk
0:00:10.4]} 26... g5 {[%clk 0:01:02.6]} 27. Nbc3 {[%clk 0:00:10.9]} 27... Nf6
{[%clk 0:01:01.5]} 28. Rad1 {[%clk 0:00:07.8]} 28... Ne5 {[%clk 0:01:01.7]} 29.
Nd4 {[%clk 0:00:06.5]} 29... Kg6 {[%clk 0:01:00.7]} 30. Ne6 {[%clk 0:00:05.5]}
30... Rh7 {[%clk 0:00:57.7]} 31. Ne2 {[%clk 0:00:05.6]} 31... Rd7 {[%clk
0:00:53.2]} 32. Rd4 {[%clk 0:00:04.9]} 32... b5 {[%clk 0:00:52.3]} 33. Rfd1
{[%clk 0:00:04.6]} 33... bxc4 {[%clk 0:00:52.4]} 34. bxc4 {[%clk 0:00:05.5]}
34... Rb8 {[%clk 0:00:52.7]} 35. c5 {[%clk 0:00:03.9]} 35... Rb2 {[%clk
0:00:52.8]} 36. N2xf4+ {[%clk 0:00:03.3]} 36... gxf4 {[%clk 0:00:52.5]} 37.
Nxf4+ {[%clk 0:00:04.2]} 37... Kf7 {[%clk 0:00:51.4]} 38. d6 {[%clk 0:00:02.6]}
38... Rxa2 {[%clk 0:00:36.1]} 39. Re1 {[%clk 0:00:01.1]} 39... Ra3 {[%clk
0:00:35.5]} 0-1

[Event "*** Titled Tuesday Blitz"]
[Site "Chess.com"]
[Date "2020.10.20"]
[Round "3"]
[White "arminmusovic"]
[Black "KyrgyzFighter"]
[Result "1-0"]
[WhiteElo "2565"]
[BlackElo "2358"]
[TimeControl "180+1"]
[EndTime "10:28:47 PDT"]
[Termination "arminmusovic won on time"]

1. a3 {[%clk 0:03:00.9]} 1... d6 {[%clk 0:02:25.8]} 2. Nc3 {[%clk 0:02:58.9]}
2... e5 {[%clk 0:02:26.1]} 3. d4 {[%clk 0:02:59]} 3... Nf6 {[%clk 0:02:21]} 4.
dxe5 {[%clk 0:02:59.9]} 4... dxe5 {[%clk 0:02:21]} 5. Qxd8+ {[%clk 0:03:00.8]}
5... Kxd8 {[%clk 0:02:21.9]} 6. Bg5 {[%clk 0:03:01.4]} 6... Be7 {[%clk
0:02:17.4]} 7. O-O-O+ {[%clk 0:03:01]} 7... Ke8 {[%clk 0:02:18.1]} 8. e4 {[%clk
0:02:59.4]} 8... c6 {[%clk 0:02:16.5]} 9. h3 {[%clk 0:02:58]} 9... h6 {[%clk
0:02:15.6]} 10. Be3 {[%clk 0:02:56.5]} 10... Be6 {[%clk 0:02:13.4]} 11. f4
{[%clk 0:02:52.8]} 11... exf4 {[%clk 0:02:11.9]} 12. Bxf4 {[%clk 0:02:53.7]}
12... b5 {[%clk 0:02:03.6]} 13. Nf3 {[%clk 0:02:47.6]} 13... a5 {[%clk 0:02:02]}
14. Nd4 {[%clk 0:02:41.6]} 14... b4 {[%clk 0:02:00.9]} 15. Nxe6 {[%clk
0:02:32.5]} 15... fxe6 {[%clk 0:01:59.2]} 16. Nb1 {[%clk 0:02:27.1]} 16... Nxe4
{[%clk 0:01:53.3]} 17. Re1 {[%clk 0:02:18.6]} 17... Nc5 {[%clk 0:01:27.1]} 18.
Bc4 {[%clk 0:01:58]} 18... Rf8 {[%clk 0:01:11.9]} 19. Bd2 {[%clk 0:01:50.4]}
19... bxa3 {[%clk 0:00:59.3]} 20. Nxa3 {[%clk 0:01:51.3]} 20... Rf2 {[%clk
0:00:50.3]} 21. Be3 {[%clk 0:01:36]} 21... Rxg2 {[%clk 0:00:48.2]} 22. Bxc5
{[%clk 0:01:35]} 22... Bxc5 {[%clk 0:00:49.1]} 23. Rxe6+ {[%clk 0:01:34.3]}
23... Kd7 {[%clk 0:00:39.9]} 24. Rf1 {[%clk 0:01:21.1]} 24... Kc7 {[%clk
0:00:33.1]} 25. Bd3 {[%clk 0:00:54.4]} 25... Rg3 {[%clk 0:00:17.6]} 26. Nc4
{[%clk 0:00:42.9]} 26... Nd7 {[%clk 0:00:15.8]} 27. Be4 {[%clk 0:00:31.1]} 27...
Ra6 {[%clk 0:00:16]} 28. Rf7 {[%clk 0:00:27.3]} 28... Kd8 {[%clk 0:00:03.6]} 29.
Bxc6 {[%clk 0:00:17.4]} 29... Nf6 {[%clk 0:00:03.8]} 30. Ne5 {[%clk 0:00:13]}
1-0